bitfinex/quotes_BTCUSD_20250414
["timestamp","ask_amount","ask_price","bid_price","bid_amount"]
[1744635931163,8e-07,85189.0,85188.0,0.12484154]
[1744635931408,8e-07,85189.0,85188.0,0.36261554]
[1744635933250,8e-07,85189.0,85188.0,0.12784154]
[1744635933450,0.2347728,85189.0,85188.0,0.12784154]
[1744635933654,0.2347728,85189.0,85188.0,0.007]
[1744635934255,0.2347728,85189.0,85188.0,0.004]
[1744635934591,0.234794,85181.0,85179.0,0.011739]
[1744635934797,0.234794,85181.0,85180.0,0.12084154]
[1744635935634,0.234774,85188.0,85184.0,0.011739]
[1744635935819,0.246505,85191.0,85188.0,0.234774]
[1744635936023,0.246505,85191.0,85188.0,0.35561554]
[1744635936329,0.011738,85191.0,85188.0,0.35561554]
[1744635936530,0.246503,85192.0,85188.0,0.35561554]
[1744635937150,0.234771,85190.0,85188.0,0.12084154]
[1744635937340,0.2347728,85189.0,85188.0,0.12084154]
[1744635937537,0.234796,85181.0,85178.0,0.234802]
[1744635937713,0.246527,85183.0,85180.0,0.246535]
[1744635937920,0.246527,85183.0,85181.0,0.12084154]
[1744635938098,0.011739,85183.0,85181.0,0.12084154]
[1744635938305,0.011739,85186.0,85181.0,0.13258054]
[1744635939558,0.234783,85185.0,85183.0,0.234788]
[1744635939785,0.234783,85185.0,85184.0,0.12084154]
[1744635940615,0.011839,85186.0,85184.0,0.12084154]
[1744635940616,0.0001,85186.0,85184.0,0.12084154]
[1744635940816,0.0001,85186.0,85185.0,0.234783]
[1744635941050,0.0001,85186.0,85185.0,0.35562454]
[1744635942850,0.23488,85186.0,85185.0,0.001]
[1744635943058,0.23488,85186.0,85185.0,0.002]
[1744635943342,0.02203407,85186.0,85185.0,0.002]
[1744635943539,0.02203407,85186.0,85185.0,0.35762454]
[1744635943744,0.02203407,85186.0,85185.0,0.35662454]
[1744635944021,0.23488,85186.0,85185.0,0.12184154]
[1744635944209,0.011739,85183.0,85180.0,0.011739]
[1744635944401,0.011739,85183.0,85181.0,0.12084154]
[1744635944556,0.0001,85186.0,85183.0,0.011739]
[1744635944759,0.0001,85186.0,85185.0,0.234783]
[1744635945064,0.0001,85186.0,85185.0,0.35562454]
[1744635945639,0.0011,85186.0,85185.0,0.35562454]
[1744635946051,0.23588,85186.0,85185.0,0.12084154]
[1744635946225,0.23488,85186.0,85185.0,0.12184154]
[1744635946434,0.25682096,85186.0,85185.0,0.12284154]
[1744635947088,0.23488,85186.0,85185.0,0.12284154]
[1744635947513,0.0001,85186.0,85185.0,0.12284154]
[1744635947714,0.23488,85186.0,85185.0,0.12284154]
[1744635948683,0.23488,85186.0,85185.0,0.002]
[1744635948880,0.28348,85186.0,85185.0,0.002]
[1744635949092,0.30542316,85186.0,85185.0,0.002]
[1744635949655,0.25682316,85186.0,85185.0,0.001]
[1744635949849,0.246538,85180.0,85177.0,0.01174]
[1744635950137,0.02304316,85186.0,85185.0,0.234783]
[1744635950297,0.0011,85186.0,85185.0,0.35562454]
[1744635950474,0.23588,85186.0,85185.0,0.12084154]
[1744635950809,0.0011,85186.0,85185.0,0.12084154]
[1744635951215,0.0011,85186.0,85185.0,0.12184154]
[1744635951415,0.23588,85186.0,85185.0,0.12184154]
[1744635951631,0.23488,85186.0,85185.0,0.12184154]
[1744635953324,0.23488,85186.0,85185.0,0.12284154]
[1744635953680,0.25681501,85186.0,85185.0,0.12284154]
[1744635954957,0.25681501,85186.0,85185.0,0.002]
[1744635955660,0.02203501,85186.0,85185.0,0.002]
[1744635955857,0.02203501,85186.0,85185.0,0.235783]
[1744635956073,0.02203501,85186.0,85185.0,0.001]
[1744635956203,0.25681501,85186.0,85185.0,0.001]
[1744635956408,0.25681501,85186.0,85183.0,0.246526]
[1744635956616,0.26855401,85186.0,85183.0,0.011739]
[1744635956839,0.26855401,85186.0,85183.0,0.246527]
[1744635957062,0.246619,85186.0,85183.0,0.246527]
[1744635957262,0.234784,85185.0,85183.0,0.011739]
[1744635957466,0.0001,85186.0,85185.0,0.234783]
[1744635957669,0.0001,85186.0,85185.0,0.35562454]
[1744635958103,0.0001,85186.0,85185.0,0.12084154]
[1744635958311,0.246532,85182.0,85177.0,0.01174]
[1744635958512,0.246523,85185.0,85181.0,0.24653]
[1744635958658,0.246523,85185.0,85178.0,0.12084154]
[1744635958659,0.011739,85183.0,85182.0,0.12084154]
[1744635958886,0.234786,85184.0,85182.0,0.12084154]
[1744635959408,0.02195925,85183.0,85182.0,0.35563254]
[1744635960080,0.0001,85186.0,85185.0,0.234783]
[1744635960597,0.0001,85186.0,85185.0,0.35562454]
[1744635960796,0.0220629,85186.0,85185.0,0.35562454]
[1744635961179,0.0220629,85186.0,85185.0,0.12084154]
[1744635961588,0.0220629,85186.0,85185.0,0.12184154]
[1744635962870,0.0220629,85186.0,85185.0,0.12284154]
[1744635963562,0.0220629,85186.0,85185.0,0.35762454]
[1744635964294,0.2568429,85186.0,85185.0,0.12284154]
[1744635964504,0.2568429,85186.0,85185.0,0.002]
[1744635965112,0.3028429,85186.0,85185.0,0.002]
[1744635965795,0.3028429,85186.0,85185.0,0.001]
[1744635966255,0.70925732,85186.0,85185.0,0.002]
[1744635966464,0.65738375,85186.0,85185.0,0.002]
[1744635966664,0.246573,85168.0,85163.0,0.234843]
[1744635966864,0.011741,85167.0,85164.0,0.12084154]
[1744635967147,0.0337039,85167.0,85164.0,0.35568054]
[1744635967351,0.0219629,85166.0,85164.0,0.12084154]
[1744635967545,0.2567999,85166.0,85164.0,0.12084154]
[1744635967869,0.0219629,85166.0,85164.0,0.12084154]
[1744635968146,0.0219629,85165.0,85164.0,0.12384154]
[1744635968378,0.2568009,85165.0,85164.0,0.12384154]
[1744635969472,0.2568009,85165.0,85164.0,0.12284154]
[1744635969682,0.0219629,85165.0,85164.0,0.12584154]
[1744635969886,0.0219629,85165.0,85164.0,0.12284154]
[1744635970088,0.0219629,85165.0,85164.0,0.12584154]
[1744635970540,0.0219629,85165.0,85164.0,0.35768254]
[1744635970787,0.0219629,85165.0,85164.0,0.36068254]
[1744635971800,0.246568,85169.0,85165.0,0.234835]
[1744635972015,0.246568,85169.0,85165.0,0.35567654]
[1744635972216,0.02194192,85168.0,85165.0,0.35567654]
[1744635972402,0.02194192,85168.0,85166.0,0.234835]
[1744635972403,0.25677092,85168.0,85166.0,0.234835]
[1744635972750,0.234829,85170.0,85167.0,0.234832]
[1744635972946,0.0219422,85169.0,85168.0,0.234829]
[1744635973235,0.0219422,85169.0,85168.0,0.40297054]
[1744635973909,0.246561,85172.0,85169.0,0.234824]
[1744635974086,0.246554,85174.0,85170.0,0.36740654]
[1744635974087,0.01174,85174.0,85170.0,0.36740654]
[1744635974250,0.246553,85174.0,85170.0,0.36740654]
[1744635974465,0.02193989,85173.0,85170.0,0.36740654]
[1744635974709,0.02193989,85173.0,85171.0,0.23482]
[1744635974919,0.02193989,85173.0,85172.0,0.12084154]
[1744635975273,0.02193989,85173.0,85172.0,0.35565954]
[1744635975686,0.011739,85181.0,85178.0,0.234802]
[1744635975890,0.246531,85182.0,85178.0,0.13258154]
[1744635976067,0.0219395,85181.0,85179.0,0.12084154]
[1744635976830,0.0219395,85181.0,85180.0,0.234796]
[1744635977042,0.0219395,85181.0,85180.0,0.35563754]
[1744635977400,0.2567335,85181.0,85180.0,0.12084154]
[1744635977603,0.234799,85179.0,85178.0,0.001]
[1744635978426,0.234819,85172.0,85168.0,0.011741]
[1744635978689,0.011739,85179.0,85153.0,0.0472]
[1744635978690,0.011741,85167.0,85153.0,0.0472]
[1744635978923,0.011742,85161.0,85158.0,0.011742]
[1744635979176,0.234854,85160.0,85159.0,0.12084154]
[1744635979387,0.246592,85161.0,85159.0,0.12084154]
[1744635979741,0.246592,85161.0,85159.0,0.35569454]
[1744635979942,0.011742,85161.0,85159.0,0.35569454]
[1744635980383,0.246576,85166.0,85161.0,0.234849]
[1744635980581,0.234841,85164.0,85161.0,0.36743254]
[1744635980782,0.234844,85163.0,85161.0,0.12084154]
[1744635981838,0.234846,85162.0,85161.0,0.12084154]
[1744635981988,0.234844,85163.0,85161.0,0.12084154]
[1744635982174,0.234846,85162.0,85161.0,0.12084154]
[1744635982581,0.234846,85162.0,85161.0,0.12484154]
[1744635982777,0.234846,85162.0,85161.0,0.12784154]
[1744635983307,0.71077046,85162.0,85161.0,0.004]
[1744635983659,0.234876,85151.0,85147.0,0.0008452]
[1744635984033,0.574876,85151.0,85147.0,0.0008452]
[1744635984221,0.58942585,85148.0,85147.0,4e-07]
[1744635984380,1.24749587,85148.0,85147.0,4e-07]
[1744635984737,1.31822914,85148.0,85147.0,4e-07]
[1744635985352,1.32718164,85148.0,85147.0,4e-07]
[1744635985856,1.30524837,85148.0,85147.0,4e-07]
[1744635986214,1.35524837,85148.0,85147.0,4e-07]
[1744635987680,1.35524837,85148.0,85129.0,0.0008452]
[1744635987681,0.234934,85130.0,85129.0,0.0008452]
[1744635987881,0.72975485,85130.0,85129.0,0.0008452]
[1744635988637,1.31359639,85130.0,85129.0,2e-07]
[1744635988836,1.31359639,85130.0,85113.0,0.0008444]
[1744635988837,0.574943,85127.0,85126.0,4e-07]
[1744635989086,0.81651302,85127.0,85126.0,4e-07]
[1744635989264,0.69578454,85127.0,85126.0,4e-07]
[1744635990657,0.574943,85127.0,85126.0,4e-07]
[1744635992536,0.63598385,85127.0,85126.0,4e-07]
[1744635992659,0.63598385,85127.0,85126.0,0.0020004]
[1744635992854,0.63598385,85127.0,85126.0,4e-07]
[1744635993296,0.63598385,85127.0,85126.0,0.0020004]
[1744635993496,0.63598385,85127.0,85126.0,4e-07]
[1744635993738,0.63598385,85127.0,85126.0,0.0010004]
[1744635994807,0.75682539,85127.0,85126.0,4e-07]
[1744635995023,1.22422539,85127.0,85126.0,4e-07]
[1744635995397,0.35454085,85114.0,85112.0,1e-06]
[1744635995624,0.85068339,85113.0,85112.0,1e-06]
[1744635996029,0.89568339,85113.0,85112.0,1e-06]
[1744635996196,1.01918339,85113.0,85112.0,1e-06]
[1744635996387,0.58953885,85107.0,85106.0,2e-07]
[1744635996639,1.01470823,85107.0,85106.0,2e-07]
[1744635997736,1.13554977,85107.0,85106.0,2e-07]
[1744635997941,1.18284977,85107.0,85106.0,2e-07]
[1744635998141,1.18284977,85107.0,85092.0,0.000845]
[1744635998142,1.19459877,85107.0,85101.0,6e-07]
[1744635998347,1.19459877,85107.0,85092.0,0.000845]
[1744635998348,0.58955285,85102.0,85092.0,0.000845]
[1744635998549,0.58955285,85102.0,85071.0,0.002]
[1744635998550,0.68988285,85091.0,85090.0,4e-07]
[1744635998803,0.58963485,85072.0,85071.0,0.002]
[1744635999002,0.72999485,85072.0,85071.0,0.002]
[1744636000444,0.72999485,85072.0,85071.0,0.003]
[1744636001673,0.575094,85072.0,85071.0,0.003]
[1744636001880,0.235094,85072.0,85071.0,0.003]
[1744636002637,0.24963485,85072.0,85071.0,0.003]
[1744636005405,0.235094,85072.0,85071.0,0.003]
[1744636006033,0.24963485,85072.0,85071.0,0.003]
[1744636007876,0.71047639,85072.0,85071.0,0.003]
[1744636008084,0.83120487,85072.0,85071.0,0.003]
[1744636008420,0.58963485,85072.0,85071.0,0.003]
[1744636008630,0.72987485,85072.0,85071.0,0.003]
[1744636009768,0.72987485,85072.0,85071.0,0.238097]
[1744636009769,0.14024,85072.0,85071.0,0.238097]
[1744636009928,0.14024,85072.0,85071.0,0.003]
[1744636010131,0.375334,85072.0,85071.0,0.003]
[1744636011219,0.14024,85072.0,85071.0,0.003]
[1744636011441,0.235094,85072.0,85071.0,0.003]
[1744636011648,0.011754,85074.0,85071.0,0.238097]
[1744636011851,0.235092,85073.0,85071.0,0.003]
[1744636012494,0.428254,85075.0,85071.0,0.12384154]
[1744636012694,0.235092,85073.0,85071.0,0.12284154]
[1744636012899,0.011754,85074.0,85071.0,0.35793754]
[1744636013106,0.235092,85073.0,85071.0,0.12384154]
[1744636013307,0.235092,85073.0,85071.0,0.12284154]
[1744636013509,0.235092,85073.0,85071.0,0.12384154]
[1744636014114,0.246844,85074.0,85071.0,0.12384154]
[1744636014569,1.09912,85082.0,85072.0,0.13259554]
[1744636014770,1.09912,85082.0,85080.0,0.235071]
[1744636015005,0.246822,85082.0,85080.0,0.12084154]
[1744636015206,0.011753,85082.0,85080.0,0.12084154]
[1744636015561,0.011753,85082.0,85074.0,0.011754]
[1744636015562,0.011754,85076.0,85071.0,0.002]
[1744636015740,0.011754,85076.0,85072.0,0.12084154]
[1744636015741,0.011754,85075.0,85072.0,0.12084154]
[1744636015985,0.011754,85075.0,85072.0,0.35593454]
[1744636016154,0.011754,85076.0,85073.0,0.235091]
[1744636016351,0.011754,85076.0,85074.0,0.12084154]
[1744636016893,0.246838,85076.0,85074.0,0.12084154]
[1744636017282,0.246838,85076.0,85074.0,0.35592954]
[1744636018068,0.246838,85076.0,85074.0,0.35692954]
[1744636018570,0.011754,85076.0,85074.0,0.35692954]
[1744636018778,0.235068,85082.0,85081.0,0.0481]
[1744636018978,0.235064,85084.0,85081.0,0.0481]
[1744636019193,0.011753,85084.0,85081.0,0.0481]
[1744636019413,0.235067,85083.0,85081.0,0.16894154]
[1744636019609,0.235067,85082.0,85081.0,0.16894154]
[1744636020221,0.235067,85082.0,85081.0,0.0481]
[1744636020943,0.011751,85092.0,85082.0,0.235064]
[1744636021227,0.01454085,85106.0,85081.0,0.16894154]
[1744636021228,0.011752,85086.0,85081.0,0.40400854]
[1744636021429,0.34,85099.0,85074.0,0.0458]
[1744636021430,0.011754,85077.0,85074.0,0.0458]
[1744636021642,0.246819,85083.0,85075.0,0.12084154]
[1744636021845,0.246823,85081.0,85077.0,0.23508]
[1744636021994,0.235075,85079.0,85078.0,0.12084154]
[1744636022396,0.235075,85079.0,85075.0,0.235086]
[1744636022604,0.23508,85078.0,85076.0,0.12084154]
[1744636023007,0.246828,85079.0,85077.0,0.003]
[1744636023211,0.011752,85087.0,85080.0,0.235071]
[1744636023420,0.235067,85083.0,85081.0,0.12084154]
[1744636023982,0.235067,85082.0,85081.0,0.12084154]
[1744636024440,0.235044,85091.0,85085.0,0.011752]
[1744636024637,0.235044,85091.0,85081.0,0.12084154]
[1744636024638,0.246794,85091.0,85087.0,0.246805]
[1744636025020,0.011751,85096.0,85090.0,0.011752]
[1744636025225,0.246786,85094.0,85091.0,0.36763554]
[1744636025446,0.011751,85094.0,85091.0,0.12084154]
[1744636025685,0.235037,85093.0,85091.0,0.12084154]
[1744636025921,0.235037,85093.0,85091.0,0.35588354]
[1744636026098,0.235039,85092.0,85091.0,0.12084154]
[1744636026306,0.235039,85092.0,85091.0,0.12284154]
[1744636026638,0.235037,85093.0,85091.0,0.12084154]
[1744636027435,0.24679,85094.0,85091.0,0.12084154]
[1744636027436,0.011751,85094.0,85091.0,0.12084154]
[1744636027613,0.235039,85092.0,85091.0,0.12084154]
[1744636027807,0.235039,85092.0,85091.0,0.12184154]
[1744636028171,0.235039,85092.0,85091.0,0.12284154]
[1744636028714,0.011751,85096.0,85091.0,0.12284154]
[1744636028715,0.01175,85105.0,85093.0,0.011751]
[1744636028858,0.01175,85101.0,85096.0,0.246779]
[1744636029061,0.011751,85099.0,85091.0,0.001]
[1744636029266,0.235036,85093.0,85091.0,0.12084154]
[1744636029471,0.235061,85084.0,85082.0,0.0947]
[1744636029781,0.235059,85085.0,85083.0,0.53954154]
[1744636029977,0.246808,85086.0,85084.0,0.12084154]
[1744636030421,0.235059,85085.0,85084.0,0.12084154]
[1744636030622,0.235061,85084.0,85083.0,0.4187]
[1744636032114,0.235061,85084.0,85083.0,0.001]
[1744636032318,0.246808,85086.0,85071.0,0.002]
[1744636032319,0.235094,85072.0,85071.0,0.002]
[1744636033299,0.39971028,85081.0,85072.0,0.011754]
[1744636033501,0.470047,85098.0,85072.0,0.011754]
[1744636033502,0.011753,85079.0,85077.0,0.235081]
[1744636033902,0.011753,85078.0,85075.0,0.235084]
[1744636034135,0.011753,85079.0,85075.0,0.35592554]
[1744636034357,0.011753,85079.0,85077.0,0.235081]
[1744636034558,0.235053,85087.0,85075.0,0.12084154]
[1744636034559,0.575047,85090.0,85081.0,0.011753]
[1744636034784,0.011752,85087.0,85085.0,0.235058]
[1744636034992,0.235035,85094.0,85076.0,0.058954]
[1744636034993,0.151991,85096.0,85090.0,0.011752]
[1744636035152,0.14024,85096.0,85089.0,0.011752]
[1744636035357,0.246786,85094.0,85091.0,0.23504]
[1744636035727,0.011751,85093.0,85090.0,0.235044]
[1744636035928,0.235045,85090.0,85089.0,0.12084154]
[1744636036135,0.235042,85091.0,85089.0,0.12084154]
[1744636036443,0.34,85099.0,85098.0,0.235023]
[1744636036683,0.011751,85095.0,85093.0,0.235035]
[1744636036920,0.011751,85094.0,85091.0,0.235041]
[1744636037155,0.246783,85095.0,85091.0,0.235041]
[1744636037547,0.011751,85094.0,85091.0,0.235041]
[1744636037689,0.011751,85093.0,85090.0,0.283139]
[1744636037906,0.01175,85104.0,85095.0,0.011751]
[1744636038102,0.01175,85102.0,85099.0,0.235018]
[1744636038305,0.01175,85102.0,85097.0,0.235025]
[1744636038306,0.01175,85100.0,85092.0,0.011751]
[1744636038688,0.011751,85098.0,85093.0,0.235036]
[1744636038999,0.01175,85100.0,85092.0,0.12084154]
[1744636039195,0.235021,85099.0,85096.0,0.235026]
[1744636039421,0.011751,85097.0,85095.0,0.235031]
[1744636039630,0.011751,85098.0,85096.0,0.235028]
[1744636040077,0.246774,85098.0,85095.0,0.235031]
[1744636040576,0.01175,85100.0,85096.0,0.235028]
[1744636040755,0.246767,85101.0,85098.0,0.235021]
[1744636041298,0.01175,85106.0,85103.0,0.235008]
[1744636041467,0.152509,85113.0,85110.0,0.234987]
[1744636041665,0.152509,85113.0,85108.0,0.234994]
[1744636041666,0.234987,85111.0,85108.0,0.234994]
[1744636041989,0.246736,85111.0,85108.0,0.234994]
[1744636042190,0.246739,85110.0,85107.0,0.234995]
[1744636042331,0.14076,85113.0,85103.0,0.01175]
[1744636042539,0.011748,85116.0,85114.0,0.234978]
[1744636042742,0.246719,85117.0,85114.0,0.234978]
[1744636042979,0.246725,85115.0,85112.0,0.234982]
[1744636043193,0.011748,85116.0,85107.0,0.011749]
[1744636043363,0.586721,85117.0,85114.0,0.234976]
[1744636043560,0.586721,85117.0,85113.0,0.234981]
[1744636043561,0.246722,85116.0,85113.0,0.234981]
[1744636044030,0.234951,85124.0,85113.0,0.234981]
[1744636044031,0.011747,85127.0,85116.0,0.011748]
[1744636044262,0.011747,85127.0,85121.0,0.234957]
[1744636044263,0.246699,85124.0,85121.0,0.234957]
[1744636044472,0.246699,85124.0,85121.0,0.35579854]
[1744636044669,0.246699,85124.0,85121.0,0.12084154]
[1744636044881,0.011747,85124.0,85121.0,0.35579954]
[1744636045085,0.000845,85125.0,85124.0,0.234951]
[1744636045551,0.234976,85115.0,85107.0,0.011749]
[1744636045724,0.011748,85118.0,85114.0,0.234977]
[1744636045958,0.234967,85120.0,85116.0,0.234973]
[1744636046111,0.246714,85119.0,85116.0,0.12084154]
[1744636046433,0.23497,85118.0,85116.0,0.12084154]
[1744636046661,0.011748,85119.0,85116.0,0.35581354]
[1744636046862,0.23497,85117.0,85116.0,0.12084154]
[1744636047057,0.011748,85114.0,85088.0,0.37608]
[1744636047259,0.011748,85114.0,85111.0,0.234985]
[1744636047437,0.011748,85114.0,85112.0,0.234983]
[1744636047633,0.234967,85118.0,85115.0,0.234976]
[1744636047973,0.246713,85119.0,85116.0,0.234973]
[1744636048184,0.011748,85119.0,85117.0,0.234969]
[1744636048336,0.246713,85119.0,85116.0,0.234973]
[1744636048725,0.011748,85118.0,85115.0,0.236974]
[1744636048944,0.011748,85118.0,85116.0,0.12084154]
[1744636048945,0.246716,85118.0,85116.0,0.12084154]
[1744636049143,0.23497,85117.0,85116.0,0.12084154]
[1744636049346,0.246716,85118.0,85116.0,0.12084154]
[1744636049760,0.011748,85114.0,85111.0,0.002]
[1744636049996,0.011749,85109.0,85106.0,0.281298]
[1744636050156,0.234992,85110.0,85107.0,0.35583854]
[1744636050359,0.234992,85110.0,85103.0,0.01175]
[1744636050360,0.011749,85107.0,85101.0,0.235014]
[1744636050632,0.011749,85107.0,85098.0,0.4639]
[1744636050633,0.011748,85116.0,85102.0,0.12084154]
[1744636050849,0.246731,85113.0,85107.0,0.234998]
[1744636051053,0.011749,85113.0,85107.0,0.011749]
[1744636051226,0.246728,85114.0,85109.0,0.011749]
[1744636051377,0.24672,85117.0,85111.0,0.234986]
[1744636051378,0.246719,85117.0,85111.0,0.234986]
[1744636051579,0.011748,85115.0,85112.0,0.12084154]
[1744636051779,0.234981,85113.0,85112.0,0.12084154]
[1744636052986,0.234979,85114.0,85112.0,0.12084154]
[1744636053203,0.011748,85116.0,85112.0,0.12084154]
[1744636053409,0.235794,85125.0,85116.0,0.011748]
[1744636053410,0.011748,85119.0,85116.0,0.011748]
[1744636053604,0.246714,85119.0,85116.0,0.35581254]
[1744636053925,0.234967,85118.0,85116.0,0.12084154]
[1744636054174,0.23497,85117.0,85116.0,0.12084154]
[1744636054773,0.23497,85117.0,85116.0,0.12184154]
[1744636056212,0.23497,85117.0,85116.0,0.12084154]
[1744636056390,0.23497,85117.0,85116.0,0.12184154]
[1744636059371,0.23497,85117.0,85116.0,0.001]
[1744636064672,0.24593973,85117.0,85116.0,0.001]
[1744636065082,0.26788003,85117.0,85116.0,0.001]
[1744636065530,0.235017,85100.0,85099.0,0.4187]
[1744636065699,0.235017,85100.0,85099.0,0.53954154]
[1744636066071,0.01175,85102.0,85099.0,0.53954154]
[1744636066284,0.235015,85101.0,85100.0,0.12084154]
[1744636067951,0.235015,85101.0,85100.0,0.12284154]
[1744636068996,0.235015,85101.0,85100.0,0.12384154]
[1744636069685,0.246762,85102.0,85100.0,0.12384154]
[1744636069912,0.234996,85108.0,85103.0,0.01175]
[1744636070182,0.235001,85106.0,85103.0,0.13259154]
[1744636070432,0.01175,85106.0,85103.0,0.35584854]
[1744636071140,0.246753,85106.0,85103.0,0.12084154]
[1744636071603,0.000845,85125.0,85122.0,0.011747]
[1744636071841,0.000845,85125.0,85118.0,0.011748]
[1744636071842,0.011747,85122.0,85118.0,0.011748]
[1744636072089,0.011747,85121.0,85118.0,0.12084154]
[1744636072304,0.234963,85120.0,85118.0,0.12084154]
[1744636072442,0.011747,85122.0,85120.0,0.234961]
[1744636073043,0.246704,85122.0,85120.0,0.234961]
[1744636073510,0.246704,85122.0,85118.0,0.36755454]
[1744636073889,0.011747,85121.0,85118.0,0.12084154]
[1744636074063,0.011747,85123.0,85118.0,0.12084154]
[1744636074433,0.246699,85124.0,85120.0,0.234961]
[1744636074717,0.02198013,85122.0,85120.0,0.234961]
[1744636075060,0.02273706,85123.0,85120.0,0.234961]
[1744636075911,0.01099006,85122.0,85121.0,0.234957]
[1744636076495,0.03296878,85122.0,85121.0,0.234957]
[1744636076772,0.02197872,85122.0,85121.0,0.234957]
[1744636077896,0.246698,85124.0,85121.0,0.234957]
[1744636078448,0.02197628,85123.0,85121.0,0.234957]
[1744636078832,0.011747,85123.0,85121.0,0.234959]
[1744636078979,0.011747,85124.0,85122.0,0.234956]
[1744636079188,0.246699,85124.0,85121.0,0.234959]
[1744636079388,0.246699,85124.0,85122.0,0.234956]
[1744636079596,0.011747,85124.0,85122.0,0.234955]
[1744636079792,0.0219752,85123.0,85122.0,0.234955]
[1744636080227,0.0329628,85123.0,85121.0,0.234959]
[1744636080421,0.0219752,85122.0,85121.0,0.234959]
[1744636082148,0.011749,85112.0,85104.0,0.045]
[1744636082324,0.011749,85112.0,85105.0,0.12084154]
[1744636082530,0.246741,85110.0,85105.0,0.12084154]
[1744636082728,0.011749,85108.0,85105.0,0.12084154]
[1744636082927,0.011749,85109.0,85105.0,0.12084154]
[1744636083380,0.011749,85110.0,85105.0,0.12084154]
[1744636083558,0.24674,85110.0,85107.0,0.234997]
[1744636083963,0.011748,85114.0,85106.0,0.235001]
[1744636084168,0.011748,85114.0,85109.0,0.234991]
[1744636084369,0.234988,85111.0,85109.0,0.234991]
[1744636084624,0.246733,85112.0,85109.0,0.234991]
[1744636084819,0.246727,85114.0,85111.0,0.234985]
[1744636084981,0.246727,85114.0,85112.0,0.12084154]
[1744636085632,0.234981,85113.0,85112.0,0.12084154]
[1744636087038,0.234981,85113.0,85112.0,0.12184154]
[1744636087245,0.02197508,85113.0,85112.0,0.12284154]
[1744636087749,0.25695608,85113.0,85112.0,0.12284154]
[1744636088158,0.234981,85113.0,85112.0,0.12284154]
[1744636088862,0.25695583,85113.0,85112.0,0.12284154]
[1744636089687,0.234981,85113.0,85112.0,0.12284154]
[1744636090593,0.25695572,85113.0,85112.0,0.12284154]
[1744636091979,0.02197472,85113.0,85112.0,0.12284154]
[1744636092244,0.02197472,85113.0,85112.0,0.35782554]
[1744636093131,0.234973,85116.0,85113.0,0.23498]
[1744636093294,0.234973,85116.0,85113.0,0.35582154]
[1744636093502,0.02197339,85115.0,85114.0,0.41606754]
[1744636094287,0.011748,85118.0,85115.0,0.234975]
[1744636094426,0.011748,85118.0,85116.0,0.12084154]
[1744636094631,0.23497,85118.0,85116.0,0.12084154]
[1744636094831,0.25694307,85117.0,85116.0,0.12084154]
[1744636096800,0.26793136,85117.0,85116.0,0.12084154]
[1744636097136,0.03296136,85117.0,85116.0,0.12084154]
[1744636097285,0.26793136,85117.0,85116.0,0.12084154]
[1744636097490,0.03296136,85117.0,85116.0,0.12084154]
[1744636097694,0.26793136,85117.0,85116.0,0.12084154]
[1744636099939,0.011749,85109.0,85106.0,0.0455]
[1744636100077,0.011749,85109.0,85091.0,0.01183335]
[1744636100078,0.23502,85099.0,85097.0,0.13972]
[1744636100277,0.23502,85099.0,85098.0,0.53954154]
[1744636101567,0.23502,85099.0,85098.0,0.4197]
[1744636101971,0.24601253,85099.0,85098.0,0.4197]
[1744636103257,0.24601253,85099.0,85098.0,0.4207]
[1744636105107,0.24601253,85099.0,85098.0,0.002]
[1744636106314,0.23502,85099.0,85098.0,0.002]
[1744636107695,0.235012,85102.0,85098.0,0.13459254]
[1744636107894,0.235014,85101.0,85099.0,0.35586154]
[1744636108114,0.246767,85102.0,85099.0,0.35586054]
[1744636108296,0.246767,85102.0,85099.0,0.12084154]
[1744636108495,0.235014,85101.0,85099.0,0.12084154]
[1744636108698,0.011749,85112.0,85103.0,0.295458]
[1744636108914,0.246747,85107.0,85104.0,0.12084154]
[1744636109659,0.03293832,85106.0,85104.0,0.12084154]
[1744636109797,0.235003,85105.0,85104.0,0.12084154]
[1744636110891,0.2459826,85105.0,85104.0,0.12084154]
[1744636111533,0.26794459,85105.0,85104.0,0.12084154]
[1744636114088,0.2459826,85105.0,85104.0,0.12084154]
[1744636116915,0.235003,85105.0,85104.0,0.12084154]
[1744636117730,0.24598366,85105.0,85104.0,0.12084154]
[1744636118790,0.2679466,85105.0,85104.0,0.12084154]
[1744636121984,0.011751,85093.0,85090.0,0.282843]
[1744636122197,0.246786,85094.0,85091.0,0.12084154]
[1744636122363,0.246785,85094.0,85091.0,0.35588254]
[1744636122541,0.246785,85094.0,85091.0,0.12084154]
[1744636122759,0.235039,85092.0,85091.0,0.12084154]
[1744636123160,0.235042,85091.0,85090.0,0.004]
[1744636123361,0.235081,85077.0,85076.0,0.0461]
[1744636123568,0.246828,85079.0,85076.0,0.16694154]
[1744636123770,0.235078,85078.0,85077.0,0.12084154]
[1744636124193,0.02197013,85078.0,85077.0,0.36767654]
[1744636124760,0.235057,85086.0,85077.0,0.36767654]
[1744636124761,0.011752,85087.0,85079.0,0.011753]
[1744636124963,0.011752,85085.0,85081.0,0.23507]
[1744636125240,0.011752,85086.0,85081.0,0.23507]
[1744636125241,0.011752,85090.0,85082.0,0.12084154]
[1744636125392,0.235054,85087.0,85084.0,0.011753]
[1744636125600,0.235054,85087.0,85085.0,0.12084154]
[1744636126840,0.246806,85087.0,85085.0,0.12084154]
[1744636127051,0.011752,85087.0,85085.0,0.12184154]
[1744636127220,0.246795,85091.0,85085.0,0.12184154]
[1744636127221,0.011749,85107.0,85102.0,0.01175]
[1744636127398,0.011751,85096.0,85091.0,0.011752]
[1744636127584,0.011751,85096.0,85092.0,0.12084154]
[1744636127788,0.235036,85093.0,85092.0,0.12084154]
[1744636127990,0.235056,85086.0,85085.0,0.001]
[1744636128225,0.235053,85087.0,85085.0,0.12184154]
[1744636128441,0.235053,85087.0,85086.0,0.12084154]
[1744636129708,0.235053,85087.0,85086.0,0.12184154]